bitfinex-derivatives/quotes_BNBF0:USTF0_20250709
["timestamp","ask_amount","ask_price","bid_price","bid_amount"]
[1752026385914,1.6913479,660.46,660.03,1.712]
[1752026386113,1.5777289,660.45,660.03,1.712]
[1752026386311,1.5777289,660.44,660.03,1.712]
[1752026386516,1.5777289,660.43,660.03,1.712]
[1752026386812,1.5777289,660.42,660.03,1.712]
[1752026387016,1.5777289,660.41,660.03,1.712]
[1752026387214,1.5777289,660.4,660.03,1.712]
[1752026387418,1.5777289,660.39,660.03,1.712]
[1752026387613,1.5777289,660.38,660.03,1.712]
[1752026387815,1.5777289,660.37,660.03,1.712]
[1752026388114,1.5777289,660.36,660.03,1.712]
[1752026388315,1.5777289,660.35,660.03,1.712]
[1752026388619,1.5777289,660.34,660.03,1.712]
[1752026388819,1.5777289,660.33,660.03,1.712]
[1752026389116,1.5777289,660.32,660.03,1.712]
[1752026389319,1.5777289,660.31,660.03,1.712]
[1752026389619,1.5777289,660.3,660.03,1.712]
[1752026389821,1.5777289,660.29,660.03,1.712]
[1752026390120,1.5777289,660.28,660.03,1.712]
[1752026390314,1.5777289,660.27,660.03,1.712]
[1752026390517,1.5777289,660.26,660.03,1.712]
[1752026390716,1.5777289,660.25,660.03,1.712]
[1752026390918,1.5777289,660.24,660.03,1.712]
[1752026391118,1.5777289,660.23,660.03,1.712]
[1752026391319,1.5777289,660.22,660.03,1.712]
[1752026391518,1.6913479,660.46,660.03,1.712]
[1752026391725,1.5777678,660.45,660.03,1.712]
[1752026391923,1.6913479,660.43,660.03,1.712]
[1752026392118,1.5777678,660.42,660.03,1.712]
[1752026392322,1.5777678,660.41,660.03,1.712]
[1752026392519,1.5777678,660.4,660.03,1.712]
[1752026392719,1.5777862,660.39,660.03,1.712]
[1752026392924,1.5777862,660.38,660.03,1.712]
[1752026393220,1.5777862,660.37,660.03,1.712]
[1752026393420,1.5777862,660.36,660.03,1.712]
[1752026393623,1.5777862,660.35,660.03,1.712]
[1752026393821,1.5777862,660.34,660.03,1.712]
[1752026394021,1.5777862,660.33,660.03,1.712]
[1752026394219,1.6913357,660.43,660.03,1.712]
[1752026394220,1.5777862,660.32,660.03,1.712]
[1752026394421,1.5777862,660.31,660.03,1.712]
[1752026394620,1.5777862,660.3,660.03,1.712]
[1752026394819,0.63194181,660.29,660.03,1.712]
[1752026395022,1.6913357,660.43,660.03,1.712]
[1752026395220,1.6913357,660.44,660.03,1.712]
[1752026396527,1.6913357,660.48,660.03,1.712]
[1752026397528,1.6913357,660.49,660.03,1.712]
[1752026398330,1.6913357,660.48,660.03,1.712]
[1752026399029,1.6913357,660.49,660.03,1.712]
[1752026399629,1.6913357,660.52,660.03,1.712]
[1752026402028,1.6913357,660.57,660.03,1.712]
[1752026403533,1.6913357,660.58,660.03,1.712]
[1752026405734,1.6913357,660.59,660.03,1.712]
[1752026406138,1.6913357,660.58,660.03,1.712]
[1752026406637,1.6913357,660.55,660.03,1.712]
[1752026406836,1.5617836,660.54,660.03,1.712]
[1752026407035,1.5617836,660.53,660.03,1.712]
[1752026407236,1.5617836,660.52,660.03,1.712]
[1752026407437,1.5617836,660.51,660.03,1.712]
[1752026407740,1.5617836,660.5,660.03,1.712]
[1752026407941,1.5617836,660.49,660.03,1.712]
[1752026408142,1.6913357,660.56,660.03,1.712]
[1752026408143,1.5617836,660.48,660.03,1.712]
[1752026408438,1.5617836,660.47,660.03,1.712]
[1752026408636,1.5617836,660.46,660.03,1.712]
[1752026408940,1.5617836,660.45,660.03,1.712]
[1752026409137,1.5617836,660.44,660.03,1.712]
[1752026409339,1.5617836,660.43,660.03,1.712]
[1752026409537,1.5617836,660.42,660.03,1.712]
[1752026409835,1.5617836,660.41,660.03,1.712]
[1752026410040,1.5617836,660.4,660.03,1.712]
[1752026410236,1.5617836,660.39,660.03,1.712]
[1752026410439,1.5617836,660.38,660.03,1.712]
[1752026410636,1.6913357,660.66,660.03,1.712]
[1752026410941,1.6913357,660.66,660.05,0.2634328]
[1752026411949,1.6913357,660.67,660.05,0.2634328]
[1752026413848,1.6913357,660.66,660.05,0.2634328]
[1752026414247,1.6913357,660.65,660.05,0.2634328]
[1752026415649,1.6913357,660.64,660.05,0.2634328]
[1752026416551,1.6913357,660.7,660.06,1.611]
[1752026416747,1.6913357,660.69,660.06,3.8782567]
[1752026418453,1.6913357,660.68,660.07,2.2672567]
[1752026418656,1.6913357,660.67,660.08,2.2672567]
[1752026418951,1.6913357,660.68,660.08,2.2672567]
[1752026419449,1.6913357,660.67,660.09,2.2672567]
[1752026421752,1.6913357,660.65,660.14,2.2672567]
[1752026421951,1.6913357,660.65,660.15,2.2672567]
[1752026424252,1.6913357,660.65,660.13,2.2672567]
[1752026424758,1.6913357,660.65,660.14,2.2672567]
[1752026425253,1.6913357,660.71,660.06,1.611]
[1752026425657,1.6913357,660.63,660.06,1.611]
[1752026426457,1.6913357,660.64,660.06,1.611]
[1752026426657,0.26341386,661.17,660.06,1.611]
[1752026426658,1.6913357,660.57,660.06,1.611]
[1752026427153,1.6913357,660.58,660.06,1.611]
[1752026428554,2.2551306,660.76,660.06,1.611]
[1752026429259,1.48467593,660.93,660.06,1.611]
[1752026429554,2.79817143,660.94,660.06,1.611]
[1752026429755,1.69344031,660.58,660.06,1.611]
[1752026430059,1.69340324,660.56,660.06,1.611]
[1752026430461,1.69340324,660.54,660.06,1.611]
[1752026430958,1.69340324,660.53,660.06,1.611]
[1752026431159,1.69340324,660.52,660.06,1.611]
[1752026431659,1.69340324,660.49,660.06,1.611]
[1752026432360,1.69340324,660.5,660.06,1.611]
[1752026433457,1.69340324,660.51,660.06,1.611]
[1752026433656,1.69340324,660.5,660.06,1.611]
[1752026435162,1.69340324,660.51,660.06,1.611]
[1752026436964,1.69340324,660.53,660.06,1.611]
[1752026437164,1.69340324,660.54,660.06,1.611]
[1752026440166,1.69340324,660.55,660.06,1.611]
[1752026440662,1.69340324,660.54,660.06,1.611]
[1752026441369,1.69340324,660.53,660.06,1.611]
[1752026441963,0.26341386,661.17,660.06,1.611]
[1752026441964,1.6916587,660.56,660.06,1.611]
[1752026444567,1.6916587,660.57,660.06,1.611]
[1752026449270,1.6916587,660.58,660.06,1.611]
[1752026451074,1.6916587,660.57,660.06,1.611]
[1752026451770,1.6916587,660.56,660.06,1.611]
[1752026453072,1.6916587,660.55,660.06,1.611]
[1752026455278,2.25792041,660.69,660.06,1.611]
[1752026455279,1.6916587,660.56,660.06,1.611]
[1752026455578,2.25792041,660.69,660.06,1.611]
[1752026455579,1.6916587,660.55,660.06,1.611]
[1752026456677,1.6916587,660.56,660.06,1.611]
[1752026457175,1.6916587,660.55,660.06,1.611]
[1752026458180,1.6916587,660.53,660.06,1.611]
[1752026458881,1.6916587,660.55,660.06,1.611]
[1752026461581,1.6916587,660.56,660.06,1.611]
[1752026462683,1.6916587,660.55,660.06,1.611]
[1752026464481,1.6916587,660.56,660.06,1.611]
[1752026466580,1.6916587,660.54,660.06,1.611]
[1752026467484,1.6916587,660.54,660.05,0.2634328]
[1752026468285,1.6916587,660.57,660.05,0.2634328]
[1752026469390,1.6916587,660.56,660.05,0.2634328]
[1752026470589,1.6916587,660.59,660.06,2.143]
[1752026473293,1.6916587,660.58,660.06,2.143]
[1752026475292,1.6916587,660.57,660.06,2.143]
[1752026475996,1.6916587,660.58,660.06,2.143]
[1752026476894,1.6916587,660.57,660.06,2.143]
[1752026477396,1.6916587,660.56,660.06,2.143]
[1752026480195,1.6916587,660.57,660.06,2.143]
[1752026481201,1.6916587,660.56,660.06,2.143]
[1752026483200,1.6916587,660.55,660.06,2.143]
[1752026483598,1.6916587,660.56,660.06,2.143]
[1752026484299,1.6916587,660.55,660.06,2.143]
[1752026484700,1.6916587,660.56,660.06,2.143]
[1752026485002,1.6916587,660.55,660.06,2.143]
[1752026486903,1.6916587,660.53,660.06,2.143]
[1752026488104,1.6916587,660.54,660.06,2.143]
[1752026489302,1.6916587,660.53,660.06,2.143]
[1752026490700,1.69371508,660.53,660.06,2.143]
[1752026491105,1.69371508,660.57,660.06,2.143]
[1752026492406,1.69371508,660.58,660.06,2.143]
[1752026492606,1.69371508,660.61,660.06,2.143]
[1752026493301,1.69371508,660.62,660.06,2.143]
[1752026494204,1.69371508,660.68,660.06,2.143]
[1752026494406,0.26341386,661.17,660.06,2.143]
[1752026494407,1.69371508,660.69,660.06,2.143]
[1752026495506,1.69371508,660.7,660.06,2.143]
[1752026496508,1.69371508,660.71,660.06,2.143]
[1752026496707,1.69371508,660.7,660.06,2.143]
[1752026497511,1.69371508,660.71,660.06,2.143]
[1752026499312,1.69371508,660.72,660.06,2.143]
[1752026501011,1.69371508,660.7,660.06,2.143]
[1752026501515,1.69371508,660.71,660.06,2.143]
[1752026502412,1.69371508,660.68,660.06,2.143]
[1752026505418,1.69371508,660.69,660.06,2.143]
[1752026505822,1.69371508,660.68,660.06,2.143]
[1752026507223,1.69371508,660.69,660.06,2.143]
[1752026509019,1.69371508,660.7,660.06,2.143]
[1752026511721,1.69371508,660.69,660.06,2.143]
[1752026517731,1.69371508,660.69,660.05,0.2634328]
[1752026519030,1.69371508,660.67,660.05,0.2634328]
[1752026520233,1.69371508,660.69,660.05,0.2634328]
[1752026520435,1.69371508,660.69,660.06,1.665]
[1752026521831,1.69371508,660.71,660.06,1.665]
[1752026524739,1.69371508,660.7,660.06,1.665]
[1752026524937,1.69371508,660.71,660.06,1.665]
[1752026525339,1.69371508,660.7,660.06,1.665]
[1752026528544,2.25792041,660.85,660.06,1.665]
[1752026528746,1.69171535,660.71,660.06,1.665]
[1752026529845,1.69171535,660.75,660.1,2.26826845]
[1752026530044,2.25792041,660.88,660.06,1.665]
[1752026530045,1.69171535,660.76,660.11,2.26826845]
[1752026530342,1.69171535,660.75,660.11,2.26826845]
[1752026530546,1.69171535,660.76,660.11,2.26826845]
[1752026530941,1.69171535,660.75,660.1,2.26826845]
[1752026532843,1.69171535,660.76,660.1,2.26826845]
[1752026534546,1.69171432,660.76,660.1,2.26826845]
[1752026538549,1.69171432,660.76,660.11,2.26826845]
[1752026538753,1.69171432,660.74,660.14,2.26826845]
[1752026539655,1.69171432,660.8,660.09,2.26826845]
[1752026539950,1.69171432,660.81,660.07,2.26826845]
[1752026540152,1.69171432,660.86,660.13,2.26826845]
[1752026540350,2.25792041,661.0,660.13,2.26826845]
[1752026540549,1.69156225,660.87,660.12,2.26826845]
[1752026541348,1.69156225,660.86,660.12,2.26826845]
[1752026541549,2.25792041,661.01,660.12,2.26826845]
[1752026541550,1.69156225,660.87,660.12,2.26826845]
[1752026542952,1.69156225,660.88,660.11,2.26826845]
[1752026543259,1.69156225,660.87,660.11,2.26826845]
[1752026543457,2.25792041,661.02,660.11,2.26826845]
[1752026543458,1.69156225,660.88,660.11,2.26826845]
[1752026545359,1.69156225,660.88,660.1,2.26826845]
[1752026546058,2.25792041,661.03,660.1,2.26826845]
[1752026546258,1.69084548,660.88,660.1,2.26826845]
[1752026546558,1.69084548,660.89,660.1,2.26826845]
[1752026549457,1.69084548,660.87,660.14,2.26826845]
[1752026549662,1.69084548,660.86,660.17,2.26826845]
[1752026552867,1.69084548,660.85,660.19,2.26826845]
[1752026553863,1.69084548,660.85,660.18,2.26826845]
[1752026554469,1.69084548,660.86,660.18,2.26826845]
[1752026555469,1.69084548,660.85,660.2,2.26826845]
[1752026560377,1.69084548,660.86,660.19,2.26826845]
[1752026560778,1.69084548,660.86,660.2,2.26826845]
[1752026561975,1.69084548,660.9,660.11,2.26826845]
[1752026562273,1.69041541,660.9,660.11,2.26826845]
[1752026564279,1.69041541,660.9,660.12,2.459]
[1752026565479,2.25792041,661.03,660.12,2.459]
[1752026565480,1.69041541,660.89,660.12,2.459]
[1752026566277,1.69041541,660.89,660.12,4.72726845]
[1752026566877,1.69041541,660.91,660.12,2.459]
[1752026567480,2.25792041,661.06,660.12,2.459]
[1752026567481,1.69041541,660.92,660.12,2.459]
[1752026568380,1.69041541,660.91,660.12,2.459]
[1752026570481,1.69041541,660.92,660.12,2.459]
[1752026571281,1.69041541,660.91,660.12,2.459]
[1752026571785,1.69041541,660.89,660.14,2.26826845]
[1752026573282,1.69041541,660.89,660.15,2.26826845]
[1752026575489,1.69041541,660.89,660.14,2.26826845]
[1752026576388,1.69041541,660.89,660.15,2.26826845]
[1752026576888,1.69041541,660.87,660.2,2.26826845]
[1752026577089,1.69041541,660.87,660.12,2.459]
[1752026577090,1.69041541,660.86,660.22,2.26826845]
[1752026577584,1.69041541,660.86,660.23,2.26826845]
[1752026579489,1.69041541,660.85,660.23,2.26826845]
[1752026582487,1.69041541,660.85,660.24,2.26826845]
[1752026583392,1.69041541,660.85,660.25,2.489]
[1752026584393,1.69041541,660.84,660.25,4.75726845]
[1752026584588,1.69041541,660.84,660.25,2.489]
[1752026585393,1.69041541,660.83,660.25,4.75726845]
[1752026586397,1.69041541,660.83,660.26,2.26826845]
[1752026586695,2.25792041,660.93,660.25,4.75726845]
[1752026586696,1.69041541,660.82,660.25,4.75726845]
[1752026587493,1.69041541,660.81,660.26,2.26826845]
[1752026588597,1.69041541,660.81,660.27,2.26826845]
[1752026589399,1.69041541,660.8,660.27,2.26826845]
[1752026590095,1.69041541,660.8,660.28,2.26826845]
[1752026592401,1.69041541,660.79,660.28,2.26826845]
[1752026593405,1.69041541,660.79,660.29,2.26826845]
[1752026595405,1.69041541,660.78,660.29,2.26826845]
[1752026596700,1.69041541,660.81,660.33,2.26826845]
[1752026598403,1.69041541,660.8,660.34,2.26826845]
[1752026599404,1.69041541,660.79,660.35,2.26826845]
[1752026601909,1.69041541,660.81,660.31,2.26826845]
[1752026604812,1.69041541,660.8,660.31,2.26826845]
[1752026605712,1.69041541,660.81,660.3,2.26826845]
[1752026606612,1.69041541,660.81,660.29,2.26826845]
[1752026606808,1.69041541,660.78,660.26,2.26826845]
[1752026608412,1.69041541,660.79,660.25,2.489]
[1752026610410,1.6969209,660.79,660.25,2.489]
[1752026611510,1.6969209,660.8,660.25,2.489]
[1752026611815,1.6969209,660.79,660.25,2.489]
[1752026616519,1.6969209,660.79,660.25,4.75726845]
[1752026616922,1.6969209,660.8,660.25,2.489]
[1752026617120,2.25792041,660.95,660.25,2.489]
[1752026617423,1.69733717,660.81,660.22,2.26826845]
[1752026617624,2.25792041,660.95,660.22,2.26826845]
[1752026617820,1.69734422,660.81,660.22,2.26826845]
[1752026618225,1.69734422,660.8,660.24,2.26826845]
[1752026618619,1.69734422,660.8,660.23,2.26826845]
[1752026620224,1.69734422,660.8,660.24,1.83]
[1752026621425,1.69734422,660.79,660.25,2.26826845]
[1752026626727,1.69734422,660.77,660.29,2.26826845]
[1752026627224,1.69734422,660.77,660.3,2.26826845]
[1752026628526,1.69734422,660.76,660.31,2.26826845]
[1752026629324,1.69734422,660.77,660.3,2.26826845]
[1752026632129,1.69734422,660.8,660.24,1.83]
[1752026636736,1.69734422,660.84,660.26,2.26826845]
[1752026637533,1.69734422,660.85,660.25,2.26826845]
[1752026639135,1.69734422,660.84,660.26,2.26826845]
[1752026641837,1.69734422,660.82,660.31,2.26826845]
[1752026642441,1.69734422,660.83,660.31,2.26826845]
[1752026644639,1.69734422,660.82,660.31,2.26826845]
[1752026646141,1.69734422,660.81,660.33,2.26826845]
[1752026646341,1.69734422,660.81,660.34,2.26826845]
[1752026646644,1.69734422,660.81,660.24,1.83]
[1752026646645,1.69734422,660.76,660.29,2.26826845]
[1752026647043,1.69734422,660.77,660.29,2.26826845]
[1752026647444,1.69734422,660.76,660.32,2.26826845]
[1752026649545,1.69734422,660.75,660.32,2.26826845]
[1752026651449,1.69734422,660.81,660.24,1.83]
[1752026657052,1.69734422,660.81,660.19,2.26826845]
[1752026660257,1.69734422,660.81,660.2,1.821]
[1752026661256,1.69734422,660.77,660.27,2.26826845]
[1752026662057,0.26336801,661.27,660.22,2.26826845]
[1752026662058,1.69734422,660.79,660.22,2.26826845]
[1752026665162,1.69734422,660.79,660.23,2.26826845]
[1752026665863,3.38688062,661.08,660.2,1.821]
[1752026666159,1.01207679,661.26,660.2,1.821]
[1752026666463,0.26336801,661.27,660.2,1.821]
[1752026666464,1.01207679,661.25,660.2,1.821]
[1752026666660,1.01207679,661.26,660.2,1.821]
[1752026666862,1.01207679,661.25,660.2,1.821]
[1752026667059,1.01207679,661.26,660.2,1.821]
[1752026667261,1.01207679,661.25,660.2,1.821]
[1752026667462,1.01207679,661.26,660.2,1.821]
[1752026667660,1.01207679,661.25,660.2,1.821]
[1752026667861,1.01207679,661.26,660.2,1.821]
[1752026668060,1.01207679,661.25,660.2,1.821]
[1752026668261,1.01207679,661.26,660.2,1.821]
[1752026668461,1.69784508,660.8,660.22,2.26919739]
[1752026670366,2.26379345,660.94,660.22,2.26919739]
[1752026670562,1.69822066,660.79,660.22,2.26919739]
[1752026671063,1.69822066,660.79,660.23,2.26919739]
[1752026671763,1.69822066,660.77,660.28,2.26919739]
[1752026672668,1.69822066,660.77,660.29,2.26919739]
[1752026675469,1.69822066,660.77,660.28,2.26919739]
[1752026676173,1.69822066,660.77,660.29,2.26919739]
[1752026676576,1.69822066,660.75,660.33,2.26919739]
[1752026686682,1.69822066,660.77,660.35,2.26919739]
[1752026691983,1.69822066,660.8,660.26,2.26919739]
[1752026692486,1.69822066,660.8,660.27,2.26919739]
[1752026693186,1.69822066,660.8,660.28,2.26919739]
[1752026696685,1.69822066,660.78,660.26,2.26919739]
[1752026699091,1.69822066,660.78,660.27,2.456]
[1752026701789,1.69822066,660.75,660.33,2.26919739]
[1752026702094,1.69822066,661.03,660.27,2.456]
[1752026702290,1.69822066,661.07,660.27,2.456]
[1752026703294,0.26329528,661.53,660.27,2.456]
[1752026703295,1.69822066,661.06,660.27,2.456]
[1752026703890,1.69822066,661.07,660.27,2.456]
[1752026704096,1.69822066,661.05,660.27,2.456]
[1752026704298,1.69822066,661.06,660.27,2.456]
[1752026705496,1.69822066,661.07,660.27,2.456]
[1752026706393,0.26329528,661.53,660.27,2.456]
[1752026706394,1.69822066,661.08,660.27,2.456]
[1752026708297,1.69822066,661.09,660.27,2.456]
[1752026708596,1.69822066,661.08,660.27,2.456]
[1752026709505,1.69822066,661.09,660.27,2.456]
[1752026709701,1.69822066,661.06,660.29,2.26919739]
[1752026710306,1.69822066,661.06,660.28,2.26919739]
[1752026711002,1.69822066,661.07,660.28,2.26919739]
[1752026711806,1.69822066,661.07,660.29,2.26919739]
[1752026712068,1.69822066,661.03,660.36,2.26919739]
[1752026712409,1.69822066,661.04,660.36,2.26919739]
[1752026712809,1.69822066,661.03,660.37,2.26919739]
[1752026713207,1.69822066,661.02,660.4,2.26919739]
[1752026714308,1.69822066,661.03,660.39,2.26919739]
[1752026716713,1.69822066,661.04,660.39,2.26919739]
[1752026717410,2.26379345,661.14,660.39,2.26919739]
[1752026717615,1.69369598,661.04,660.39,2.26919739]
[1752026719320,1.69369598,661.04,660.38,2.26919739]
[1752026720919,1.69369598,661.07,660.41,2.26919739]
[1752026722023,1.69369598,661.09,660.36,2.26919739]
[1752026722320,1.69369598,661.1,660.36,2.26919739]
[1752026723325,1.69369598,661.1,660.35,2.26919739]
[1752026727325,1.69369598,661.1,660.27,2.456]
[1752026727326,1.69369598,661.1,660.34,2.26919739]
[1752026728228,1.69369598,661.1,660.33,2.26919739]
[1752026729325,1.69369598,661.12,660.32,2.26919739]
[1752026731827,1.69369598,661.11,660.35,2.26919739]
[1752026732127,2.26379345,661.23,660.35,2.26919739]
[1752026732334,1.69268242,661.11,660.35,2.26919739]
[1752026733232,1.69268242,661.11,660.36,2.26919739]
[1752026733634,1.69268242,661.11,660.35,2.26919739]
[1752026736737,1.69268242,661.19,660.33,2.26919739]
[1752026737136,1.69268242,661.19,660.34,2.26919739]
[1752026738537,1.69268242,661.22,660.38,2.26919739]
[1752026739034,1.69268242,661.26,660.41,2.26919739]
[1752026739838,1.69268242,661.29,660.43,2.26919739]
[1752026740338,1.69268242,661.29,660.42,2.26919739]
[1752026742040,1.69268242,661.3,660.39,2.26919739]
[1752026742436,1.69268242,661.3,660.38,2.26919739]
[1752026744440,1.69268242,661.3,660.39,2.26919739]
[1752026745041,1.69268242,661.3,660.4,1.944]
[1752026746638,1.69268242,661.29,660.41,2.26919739]
[1752026746837,1.69268242,661.24,660.4,1.944]
[1752026750044,1.69268242,661.23,660.4,4.21319739]
[1752026751745,1.69268242,661.21,660.45,2.26919739]
[1752026752049,1.69268242,661.22,660.46,2.26919739]
[1752026754250,1.69268242,661.22,660.47,2.26919739]
[1752026754747,1.69268242,661.22,660.46,2.26919739]
[1752026754946,1.69268242,661.21,660.48,2.26919739]
[1752026755251,1.69268242,661.21,660.49,2.26919739]
[1752026756050,1.69268242,661.22,660.49,2.26919739]
[1752026756248,1.69268242,661.21,660.5,2.26919739]
[1752026756752,0.26318078,661.79,660.4,1.944]
[1752026756753,1.69268242,661.23,660.51,2.26919739]
[1752026756949,1.69268242,661.27,660.55,2.26919739]
[1752026757153,1.69268242,661.29,660.57,2.26919739]
[1752026757352,1.69268242,661.29,660.46,3.40379609]
[1752026757353,1.69268242,661.28,660.58,2.26919739]
[1752026759154,1.69268242,661.27,660.59,2.26919739]
[1752026759855,1.69268242,661.28,660.57,2.26919739]
[1752026760055,1.69268242,661.36,660.61,2.26919739]
[1752026761455,1.69268242,661.35,660.62,2.26919739]
[1752026761758,1.69268242,661.36,660.61,2.26919739]
[1752026762351,1.69268242,661.37,660.61,2.26919739]
[1752026763351,1.69268242,661.37,660.6,2.26919739]
[1752026764350,1.69268242,661.38,660.6,2.26919739]
[1752026765355,1.69268242,661.38,660.59,2.26919739]
[1752026766151,1.69367359,661.38,660.59,2.26919739]
[1752026766656,1.69367359,661.36,660.6,2.545]
[1752026769664,1.69367359,661.35,660.6,2.545]
[1752026769864,0.26318078,661.79,660.62,2.26919739]
[1752026769865,1.69367359,661.33,660.62,2.26919739]
[1752026771465,1.69367359,661.33,660.61,2.26919739]
[1752026772264,1.69367359,661.33,660.62,2.26919739]
[1752026772464,1.69367359,661.34,660.61,2.26919739]
[1752026773767,1.69367359,661.34,660.6,2.545]
[1752026773768,1.69367359,661.34,660.6,4.81419739]
[1752026773964,1.69367359,661.34,660.61,2.26919739]
[1752026776768,1.69367359,661.36,660.64,2.26919739]
[1752026776964,1.69367359,661.4,660.6,2.545]
[1752026781269,1.69367359,661.48,660.6,2.545]
[1752026781967,1.69367359,661.47,660.6,2.545]
[1752026782364,1.69367359,661.56,660.6,2.545]
[1752026782969,1.69367359,661.57,660.6,2.545]
[1752026783370,1.69367359,661.58,660.6,2.545]
[1752026784168,1.69367359,661.57,660.6,2.545]
[1752026785874,1.69367359,661.58,660.6,2.545]
[1752026786776,1.69367359,661.55,660.6,2.545]
[1752026789072,1.69367359,661.57,660.6,2.545]
[1752026789872,1.69367359,661.56,660.6,2.545]
[1752026791279,1.69367359,661.55,660.6,2.545]
[1752026791574,1.69367359,661.56,660.6,2.545]
[1752026792077,1.69367359,661.55,660.6,2.545]
[1752026792274,5.65948362,662.54,660.6,2.545]
[1752026792275,1.69367359,661.58,660.61,2.26919739]
[1752026792474,1.69367359,661.65,660.75,2.26919739]
[1752026793075,1.69367359,661.67,660.78,2.26919739]
[1752026793280,1.69367359,661.71,660.8,2.26919739]
[1752026793782,1.69367359,661.74,660.84,2.26919739]
[1752026793980,1.69367359,661.8,660.71,2.26919739]
[1752026794179,1.69367359,661.8,660.6,2.545]
[1752026794180,1.69367359,661.8,660.72,2.26919739]
[1752026794379,1.69367359,661.81,660.7,2.26919739]
[1752026795381,1.69367359,661.83,660.7,2.26919739]
[1752026795877,1.69367359,661.83,660.69,2.26919739]
[1752026796278,1.69367359,661.85,660.71,2.26919739]
[1752026796477,1.69367359,661.85,660.7,2.26919739]
[1752026796777,1.69367359,661.87,660.71,2.26919739]
[1752026796980,1.69367359,661.87,660.6,2.545]
[1752026796981,1.69367359,661.87,660.72,2.26919739]
[1752026797175,1.69367359,661.86,660.75,2.26919739]
[1752026797376,1.69367359,661.87,660.73,2.26919739]
[1752026797877,1.69367359,661.86,660.73,2.26919739]
[1752026798078,1.69367359,661.99,660.86,2.26919739]
[1752026798280,1.69367359,661.99,660.68,3.40379609]
[1752026798281,1.69367359,662.03,660.89,2.26919739]
[1752026798581,1.69367359,662.03,660.6,2.545]
[1752026798582,1.69367359,662.04,660.86,2.26919739]
[1752026799082,1.69367359,662.04,660.87,2.26919739]
[1752026799382,1.69367359,662.04,660.84,2.26919739]
[1752026799581,1.69367359,662.04,660.93,2.26919739]
[1752026799782,1.69367359,662.0,661.04,2.26919739]
[1752026800385,1.69367359,662.01,661.01,2.26919739]
[1752026800979,3.39569017,662.22,660.6,2.545]
[1752026800980,1.69367359,662.03,660.96,2.26919739]
[1752026801184,1.69367359,662.02,660.96,2.26919739]
[1752026801483,1.69367359,662.03,660.93,2.26919739]
[1752026802382,1.69367359,662.04,660.91,2.26919739]
[1752026802680,1.69367359,662.04,660.78,3.40379609]
[1752026802681,1.69367359,662.09,660.78,2.26919739]
[1752026803485,1.69367359,662.09,660.76,2.26919739]
[1752026803682,1.69367359,662.02,660.93,2.26919739]
[1752026803984,1.69367359,662.03,660.92,2.26919739]
[1752026804387,1.69367359,662.03,660.9,2.26919739]
[1752026805280,1.30175162,662.13,660.89,2.26919739]
[1752026805281,1.69367359,662.04,660.89,2.26919739]
[1752026806286,1.69367359,662.03,660.89,2.26919739]
[1752026806483,1.69367359,662.04,660.87,2.26919739]
[1752026806987,1.69367359,662.04,660.76,3.40379609]
[1752026806988,1.69367359,662.05,660.83,2.26919739]
[1752026807287,1.69367359,662.05,660.81,2.26919739]
[1752026807483,1.69367359,662.1,660.71,2.26919739]
[1752026807688,1.69367359,662.1,660.7,2.26919739]
[1752026808389,1.69367359,662.1,660.68,2.26919739]
[1752026809290,1.69367359,662.11,660.67,2.26919739]
[1752026810184,1.69367359,662.11,660.68,2.26919739]
[1752026810486,1.69367359,662.11,660.67,2.26919739]
[1752026811390,1.69367359,662.12,660.67,2.26919739]
[1752026812285,1.69367359,662.12,660.66,2.26919739]
[1752026812784,1.69367359,662.12,660.6,2.545]
[1752026812785,1.69367359,662.13,660.65,2.26919739]
[1752026813386,1.69367359,662.13,660.64,2.26919739]
[1752026814383,1.69367359,662.13,660.65,2.26919739]
[1752026815285,1.69367359,662.14,660.65,2.26919739]
[1752026816787,1.69367359,662.2,660.72,2.26919739]
[1752026817286,1.69367359,662.17,660.77,2.26919739]
[1752026817487,1.69367359,662.17,660.78,2.26919739]
[1752026818287,1.69367359,662.16,660.8,2.26919739]
[1752026819192,1.69367359,662.16,660.79,2.26919739]
[1752026819389,1.69367359,662.16,660.81,2.144]
[1752026821289,1.69367359,662.17,660.81,2.144]
[1752026821689,1.69367359,662.16,660.81,2.144]
[1752026821993,1.69367359,662.18,660.81,2.144]
[1752026822391,1.69367359,662.17,660.81,2.144]